fUSD/lending_fUSD_20250304
["ID","MTS","AMOUNT","RATE_DAILY","PERIOD"]
[355342737,1741069843882,-503.31161655,0.00012583,2]
[355342739,1741069843891,-813.24,0.00012583,2]
[355342741,1741069843901,-1163.35,0.00012583,2]
[355342743,1741069843910,-577.54,0.00012583,2]
[355342745,1741069843920,-500.0,0.00012583,2]
[355342747,1741069843930,-500.0,0.00012583,2]
[355342749,1741069843940,-500.0,0.00012583,2]
[355342751,1741069843949,-2001.8,0.00012583,2]
[355342753,1741069843959,-500.0,0.00012583,2]
[355342755,1741069843970,-500.0,0.00012583,2]
[355342757,1741069843979,-500.0,0.00012583,2]
[355342760,1741069843988,-880.32,0.00012583,2]
[355342762,1741069843998,-1561.77,0.00012583,2]
[355342764,1741069844008,-500.0,0.00012583,2]
[355342766,1741069844017,-500.0,0.00012583,2]
[355342768,1741069844027,-500.0,0.00012583,2]
[355342770,1741069844039,-948.35,0.00012583,2]
[355342771,1741069844048,-500.0,0.00012583,2]
[355342774,1741069844058,-500.0,0.00012583,2]
[355342777,1741069844069,-2945.73,0.00012583,2]
[355342779,1741069844079,-4127.08,0.00012583,2]
[355342783,1741069844090,-303.70196391,0.00012583,2]
[355342785,1741069844104,-537.98394118,0.00012583,2]
[355342787,1741069844115,-500.0,0.00012583,2]
[355342789,1741069844126,-2719.88,0.00012583,2]
[355342792,1741069844139,-2043.31,0.00012583,2]
[355342793,1741069844149,-5636.41,0.00012583,2]
[355342796,1741069844158,-500.0,0.00012583,2]
[355342799,1741069844169,-500.0,0.00012583,2]
[355342801,1741069844182,-500.0,0.00012583,2]
[355342803,1741069844191,-500.0,0.00012583,2]
[355342805,1741069844201,-1188.9,0.00012583,2]
[355342808,1741069844211,-850.73,0.00012583,2]
[355342811,1741069844220,-500.0,0.00012583,2]
[355342827,1741069844230,-500.0,0.00012583,2]
[355342829,1741069844380,-2992.78,0.00012583,2]
[355342831,1741069844389,-1749.75,0.00012583,2]
[355342833,1741069844398,-6394.92,0.00012583,2]
[355342835,1741069844407,-500.0,0.00012583,2]
[355342837,1741069844417,-500.0,0.00012583,2]
[355342839,1741069844427,-1608.07,0.00012583,2]
[355342841,1741069844436,-3571.52,0.00012583,2]
[355342843,1741069844446,-500.0,0.00012583,2]
[355342845,1741069844456,-521.95003718,0.00012583,2]
[355342847,1741069844466,-549.83224842,0.00012583,2]
[355342850,1741069844476,-500.0,0.00012583,2]
[355342852,1741069844486,-282.8998244,0.00012583,2]
[355342854,1741069844495,-500.0,0.00012583,2]
[355342856,1741069844504,-4947.67,0.00012583,2]
[355342858,1741069844514,-475.82132969,0.00012583,2]
[355342860,1741069844523,-500.0,0.00012583,2]
[355342861,1741069844532,-500.0,0.00012583,2]
[355342863,1741069844541,-2590.54,0.00012583,2]
[355342866,1741069844551,-566.30383351,0.00012583,2]
[355342868,1741069844560,-4631.62,0.00012583,2]
[355342870,1741069844569,-500.0,0.00012583,2]
[355342872,1741069844579,-1361.54,0.00012583,2]
[355342874,1741069844588,-500.0,0.00012583,2]
[355342876,1741069844597,-500.0,0.00012583,2]
[355342878,1741069844607,-636.1,0.00012583,2]
[355342880,1741069844616,-1463.97,0.00012583,2]
[355342882,1741069844625,-500.0,0.00012583,2]
[355342884,1741069844634,-1509.24,0.00012583,2]
[355342886,1741069844644,-475.44044458,0.00012583,2]
[355342888,1741069844653,-500.0,0.00012583,2]
[355342890,1741069844667,-883.32,0.00012583,2]
[355342892,1741069844677,-4223.44,0.00012583,2]
[355342894,1741069844687,-500.0,0.00012583,2]
[355342896,1741069844696,-500.0,0.00012583,2]
[355342898,1741069844707,-3634.41,0.00012583,2]
[355342900,1741069844716,-515.47702681,0.00012583,2]
[355342902,1741069844726,-500.0,0.00012583,2]
[355342904,1741069844736,-508.42529559,0.00012583,2]
[355342906,1741069844745,-560.31332206,0.00012583,2]
[355342908,1741069844755,-512.64424435,0.00012583,2]
[355342910,1741069844764,-506.73131647,0.00012583,2]
[355342912,1741069844774,-500.0,0.00012583,2]
[355342914,1741069844783,-500.0,0.00012583,2]
[355342917,1741069844793,-500.0,0.00012583,2]
[355342920,1741069844802,-9850.34,0.00012583,2]
[355342923,1741069844813,-500.0,0.00012583,2]
[355342926,1741069844822,-500.0,0.00012583,2]
[355342929,1741069844832,-500.0,0.00012583,2]
[355342932,1741069844841,-2283.01,0.00012583,2]
[355342935,1741069844851,-500.0,0.00012583,2]
[355342937,1741069844860,-500.0,0.00012583,2]
[355342939,1741069844870,-349.65012953,0.00012583,2]
[355342941,1741069844879,-515.48353115,0.00012583,2]
[355342943,1741069844889,-3731.48,0.00012583,2]
[355342945,1741069844899,-500.0,0.00012583,2]
[355342947,1741069844908,-1925.51,0.00012583,2]
[355342949,1741069844918,-500.0,0.00012583,2]
[355342951,1741069844928,-2228.03,0.00012583,2]
[355342953,1741069844938,-2278.36,0.00012583,2]
[355342955,1741069844947,-1644.18,0.00012583,2]
[355342957,1741069844957,-1209.86,0.00012583,2]
[355342959,1741069844966,-714.99,0.00012583,2]
[355342961,1741069844976,-2636.61,0.00012583,2]
[355342963,1741069844986,-1493.54,0.00012583,2]
[355342965,1741069844995,-938.69,0.00012583,2]
[355342967,1741069845005,-500.0,0.00012583,2]
[355342969,1741069845015,-500.0,0.00012584,2]
[355342971,1741069845025,-500.0,0.00012584,2]
[355342973,1741069845034,-1114.45,0.00012584,2]
[355342975,1741069845043,-500.0,0.00012584,2]
[355342977,1741069845053,-500.0,0.00012584,2]
[355342979,1741069845063,-500.0,0.00012584,2]
[355342981,1741069845072,-500.0,0.00012584,2]
[355342983,1741069845081,-500.0,0.00012584,2]
[355342985,1741069845096,-500.0,0.00012584,2]
[355342987,1741069845106,-909.04,0.00012584,2]
[355342989,1741069845116,-1503.98,0.00012584,2]
[355342991,1741069845126,-500.0,0.00012584,2]
[355342993,1741069845138,-840.11,0.00012584,2]
[355342995,1741069845147,-500.0,0.00012584,2]
[355342997,1741069845156,-500.0,0.00012584,2]
[355342999,1741069845168,-500.0,0.00012584,2]
[355343001,1741069845179,-694.05,0.00012584,2]
[355343003,1741069845188,-919.53,0.00012584,2]
[355343005,1741069845198,-629.72,0.00012584,2]
[355343007,1741069845207,-1515.99,0.00012584,2]
[355343009,1741069845216,-526.72,0.00012584,2]
[355343011,1741069845226,-500.0,0.00012584,2]
[355343013,1741069845235,-908.96,0.00012584,2]
[355343015,1741069845248,-872.3,0.00012584,2]
[355343016,1741069845258,-927.92,0.00012584,2]
[355343017,1741069845267,-1626.04,0.00012584,2]
[355343018,1741069845277,-698.46,0.00012584,2]
[355343019,1741069845287,-2572.69,0.00012584,2]
[355343020,1741069845296,-500.0,0.00012584,2]
[355343021,1741069845306,-2386.48,0.00012584,2]
[355343022,1741069845315,-500.0,0.00012584,2]
[355343023,1741069845324,-1425.61,0.00012584,2]
[355343024,1741069845334,-500.0,0.00012584,2]
[355343025,1741069845343,-507.85599243,0.00012584,2]
[355343026,1741069845353,-500.0,0.00012584,2]
[355343027,1741069845362,-1684.75,0.00012584,2]
[355343028,1741069845371,-2085.98,0.00012584,2]
[355343029,1741069845381,-299.14470654,0.00012584,2]
[355343030,1741069845391,-500.0,0.00012584,2]
[355343032,1741069845400,-500.0,0.00012584,2]
[355343034,1741069845410,-500.0,0.00012584,2]
[355343036,1741069845419,-500.0,0.00012584,2]
[355343038,1741069845430,-500.0,0.00012584,2]
[355343040,1741069845439,-500.0,0.00012584,2]
[355343042,1741069845448,-500.0,0.00012584,2]
[355343044,1741069845458,-500.0,0.00012584,2]
[355343046,1741069845467,-500.0,0.00012584,2]
[355343048,1741069845477,-500.0,0.00012584,2]
[355343050,1741069845486,-500.0,0.00012584,2]
[355343052,1741069845496,-500.0,0.00012584,2]
[355343054,1741069845506,-500.0,0.00012584,2]
[355343056,1741069845515,-500.0,0.00012584,2]
[355343059,1741069845528,-500.0,0.00012584,2]
[355343061,1741069845538,-500.0,0.00012584,2]
[355343063,1741069845548,-500.0,0.00012584,2]
[355343065,1741069845558,-500.0,0.00012584,2]
[355343067,1741069845567,-500.0,0.00012584,2]
[355343069,1741069845577,-823.72,0.00012584,2]
[355343071,1741069845591,-500.0,0.00012584,2]
[355343073,1741069845601,-500.0,0.00012584,2]
[355343075,1741069845611,-329.68837453,0.00012584,2]
[355343077,1741069845620,-832.16,0.00012584,2]
[355343079,1741069845629,-1029.35,0.00012584,2]
[355343081,1741069845639,-855.28,0.00012585,2]
[355343083,1741069845648,-513.99481231,0.00012585,2]
[355343085,1741069845659,-503.84442259,0.00012585,2]
[355343087,1741069845668,-500.0,0.00012585,2]
[355343089,1741069845679,-500.0,0.00012585,2]
[355343091,1741069845688,-500.0,0.00012585,2]
[355343093,1741069845698,-500.0,0.00012585,2]
[355343095,1741069845707,-500.0,0.00012585,2]
[355343097,1741069845716,-500.0,0.00012585,2]
[355343099,1741069845726,-500.0,0.00012585,2]
[355343101,1741069845735,-500.0,0.00012585,2]
[355343103,1741069845744,-500.0,0.00012585,2]
[355343105,1741069845754,-500.0,0.00012585,2]
[355343107,1741069845763,-500.0,0.00012585,2]
[355343110,1741069845772,-762.87,0.00012585,2]
[355343112,1741069845782,-500.0,0.00012585,2]
[355343115,1741069845791,-501.3874563,0.00012585,2]
[355343116,1741069845800,-601.15,0.00012585,2]
[355343118,1741069845810,-501.87009548,0.00012585,2]
[355343121,1741069845819,-500.0,0.00012585,2]
[355343122,1741069845829,-500.0,0.00012585,2]
[355343125,1741069845839,-1032.72,0.00012585,2]
[355343128,1741069845849,-503.09521003,0.00012585,2]
[355343130,1741069845858,-502.59084184,0.00012585,2]
[355343132,1741069845867,-500.0,0.00012585,2]
[355343134,1741069845877,-504.84205732,0.00012585,2]
[355343136,1741069845887,-500.0,0.00012585,2]
[355343138,1741069845896,-506.65577828,0.00012585,2]
[355343139,1741069845906,-500.0,0.00012585,2]
[355343141,1741069845915,-505.04931842,0.00012585,2]
[355343143,1741069845925,-500.0,0.00012585,2]
[355343146,1741069845935,-502.86788279,0.00012585,2]
[355343148,1741069845944,-500.0,0.00012585,2]
[355343150,1741069845954,-500.0,0.00012585,2]
[355343152,1741069845964,-500.0,0.00012585,2]
[355343153,1741069845973,-502.94830182,0.00012585,2]
[355343156,1741069845983,-500.0,0.00012585,2]
[355343157,1741069845993,-500.0,0.00012585,2]
[355343160,1741069846003,-507.53077344,0.00012585,2]
[355343161,1741069846012,-500.0,0.00012585,2]
[355343163,1741069846022,-500.0,0.00012585,2]
[355343165,1741069846031,-813.56,0.00012585,2]
[355343168,1741069846040,-500.0,0.00012585,2]
[355343169,1741069846050,-500.0,0.00012585,2]
[355343171,1741069846060,-500.0,0.00012585,2]
[355343174,1741069846070,-548.47633026,0.00012585,2]
[355343176,1741069846079,-505.58734366,0.00012585,2]
[355343177,1741069846091,-502.10525125,0.00012585,2]
[355343180,1741069846104,-503.44119499,0.00012585,2]
[355343182,1741069846113,-521.54180546,0.00012585,2]
[355343184,1741069846123,-507.69364763,0.00012585,2]
[355343186,1741069846132,-500.0,0.00012585,2]
[355343187,1741069846142,-511.33846359,0.00012585,2]
[355343190,1741069846151,-510.4279021,0.00012585,2]
[355343192,1741069846160,-508.77300908,0.00012585,2]
[355343193,1741069846171,-500.0,0.00012585,2]
[355343196,1741069846181,-500.0,0.00012585,2]
[355343198,1741069846191,-750.8,0.00012585,2]
[355343200,1741069846200,-500.0,0.00012585,2]
[355343202,1741069846210,-500.0,0.00012585,2]
[355343204,1741069846224,-507.25751015,0.00012585,2]
[355343206,1741069846233,-500.0,0.00012585,2]
[355343208,1741069846243,-500.0,0.00012585,2]
[355343210,1741069846255,-603.05,0.00012585,2]
[355343212,1741069846264,-500.0,0.00012585,2]
[355343214,1741069846274,-210.58162785,0.00012585,2]
[355343216,1741069846286,-500.0,0.00012585,2]
[355343218,1741069846295,-578.43,0.00012585,2]
[355343220,1741069846304,-500.0,0.00012585,2]
[355343222,1741069846314,-500.0,0.00012585,2]
[355343224,1741069846323,-507.19034771,0.00012585,2]
[355343226,1741069846333,-513.24218485,0.00012585,2]
[355343228,1741069846343,-512.85287101,0.00012585,2]
[355343230,1741069846352,-500.0,0.00012585,2]
[355343232,1741069846362,-849.81,0.00012585,2]
[355343234,1741069846371,-514.6438388,0.00012585,2]
[355343253,1741069846541,-525.1133212,0.00012585,2]
[355343255,1741069846550,-682.57,0.00012585,2]
[355343257,1741069846560,-500.0,0.00012585,2]
[355343259,1741069846569,-871.22,0.00012585,2]
[355343261,1741069846579,-500.0,0.00012585,2]
[355343263,1741069846588,-500.0,0.00012585,2]
[355343265,1741069846597,-500.0,0.00012585,2]
[355343267,1741069846607,-788.32,0.00012585,2]
[355343269,1741069846616,-500.0,0.00012585,2]
[355343271,1741069846626,-500.0,0.00012585,2]
[355343273,1741069846636,-512.0841889,0.00012585,2]
[355343275,1741069846645,-511.74476378,0.00012585,2]
[355343277,1741069846657,-500.0,0.00012585,2]
[355343279,1741069846667,-513.34224906,0.00012585,2]
[355343281,1741069846678,-500.0,0.00012585,2]
[355343283,1741069846687,-500.0,0.00012585,2]
[355343285,1741069846698,-500.0,0.00012585,2]
[355343287,1741069846707,-500.0,0.00012585,2]
[355343289,1741069846717,-519.91,0.00012585,2]
[355343291,1741069846726,-500.0,0.00012585,2]
[355343293,1741069846735,-500.0,0.00012585,2]
[355343295,1741069846744,-793.84,0.00012585,2]
[355343297,1741069846753,-500.0,0.00012585,2]
[355343299,1741069846762,-500.0,0.00012585,2]
[355343301,1741069846772,-500.0,0.00012585,2]
[355343303,1741069846781,-480.0852628,0.00012585,2]
[355343305,1741069846791,-500.0,0.00012585,2]
[355343307,1741069846800,-589.7,0.00012585,2]
[355343309,1741069846810,-500.0,0.00012585,2]
[355343311,1741069846820,-500.0,0.00012585,2]
[355343313,1741069846829,-161.88016435,0.00012585,2]
[355343315,1741069846838,-731.85,0.00012585,2]
[355343317,1741069846847,-589.32,0.00012585,2]
[355343319,1741069846857,-673.46,0.00012585,2]
[355343321,1741069846866,-158.663893,0.00012585,2]
[355343323,1741069846875,-500.0,0.00012585,2]
[355343325,1741069846884,-563.04,0.00012585,2]
[355343327,1741069846894,-500.0,0.00012585,2]
[355343329,1741069846903,-500.0,0.00012585,2]
[355343331,1741069846912,-695.65,0.00012585,2]
[355343333,1741069846922,-318.85372848,0.00012585,2]
[355343335,1741069846932,-500.0,0.00012585,2]
[355343337,1741069846941,-192.517258,0.00012585,2]
[355343339,1741069846951,-333.09223218,0.00012585,2]
[355343341,1741069846960,-661.41,0.00012585,2]
[355343343,1741069846970,-500.0,0.00012585,2]
[355343345,1741069846979,-500.0,0.00012585,2]
[355343347,1741069846988,-211.38778591,0.00012585,2]
[355343349,1741069846998,-500.0,0.00012585,2]
[355343351,1741069847008,-684.38,0.00012585,2]
[355343353,1741069847017,-739.14,0.00012585,2]
[355343355,1741069847026,-500.0,0.00012585,2]
[355343357,1741069847036,-327.98,0.00012585,2]
[355343359,1741069847046,-500.0,0.00012585,2]
[355343361,1741069847055,-500.0,0.00012585,2]
[355343363,1741069847064,-277.96910104,0.00012585,2]
[355343365,1741069847074,-500.0,0.00012585,2]
[355343367,1741069847084,-169.01812185,0.00012585,2]
[355343369,1741069847098,-500.0,0.00012585,2]
[355343371,1741069847108,-881.73,0.00012585,2]
[355343373,1741069847117,-510.43079893,0.00012585,2]
[355343375,1741069847127,-726.15,0.00012585,2]
[355343377,1741069847136,-507.5825995,0.00012585,2]
[355343379,1741069847146,-573.19,0.00012585,2]
[355343381,1741069847155,-714.49,0.00012585,2]
[355343383,1741069847164,-601.61743431,0.00012585,2]
[355343385,1741069847176,-500.0,0.00012585,2]
[355343387,1741069847186,-500.0,0.00012585,2]
[355343389,1741069847195,-500.0,0.00012585,2]
[355343391,1741069847204,-784.84,0.00012585,2]
[355343393,1741069847214,-500.0,0.00012585,2]
[355343395,1741069847224,-500.0,0.00012585,2]
[355343397,1741069847234,-500.0,0.00012585,2]
[355343399,1741069847243,-500.0,0.00012585,2]
[355343401,1741069847252,-500.0,0.00012585,2]
[355343403,1741069847262,-500.0,0.00012585,2]
[355343405,1741069847271,-500.0,0.00012585,2]
[355343407,1741069847281,-500.0,0.00012585,2]
[355343409,1741069847290,-500.0,0.00012585,2]
[355343411,1741069847299,-528.27353447,0.00012585,2]
[355343413,1741069847309,-1035.44,0.00012585,2]
[355343415,1741069847318,-736.94,0.00012585,2]
[355343417,1741069847327,-501.59108993,0.00012585,2]
[355343419,1741069847336,-572.16236928,0.00012585,2]
[355343421,1741069847346,-500.0,0.00012585,2]
[355343423,1741069847355,-500.0,0.00012585,2]
[355343425,1741069847364,-505.42165781,0.00012585,2]
[355343427,1741069847373,-547.4,0.00012585,2]
[355343429,1741069847383,-500.0,0.00012585,2]
[355343431,1741069847392,-515.79473093,0.00012585,2]
[355343433,1741069847401,-500.0,0.00012585,2]
[355343435,1741069847410,-500.0,0.00012585,2]
[355343437,1741069847427,-502.92538668,0.00012585,2]
[355343440,1741069847446,-543.04282604,0.00012585,2]
[355343443,1741069847464,-500.0,0.00012585,2]
[355343446,1741069847489,-500.0,0.00012585,2]
[355343449,1741069847510,-500.0,0.00012585,2]
[355343452,1741069847527,-849.41,0.00012585,2]
[355343457,1741069847562,-500.2,0.00012585,2]
[355343460,1741069847587,-500.0,0.00012585,2]
[355343464,1741069847617,-500.0,0.00012585,2]
[355343467,1741069847636,-500.0,0.00012585,2]
[355343471,1741069847658,-500.0,0.00012585,2]
[355343473,1741069847679,-500.0,0.00012585,2]
[355343476,1741069847692,-500.0,0.00012585,2]
[355343479,1741069847712,-509.47454863,0.00012585,2]
[355343481,1741069847725,-535.23,0.00012585,2]
[355343483,1741069847746,-942.86,0.00012585,2]
[355343484,1741069847760,-1056.08,0.00012585,2]
[355343486,1741069847778,-500.0,0.00012585,2]
[355343489,1741069847796,-524.97384144,0.00012585,2]
[355343492,1741069847816,-500.0,0.00012585,2]
[355343495,1741069847832,-500.0,0.00012585,2]
[355343497,1741069847849,-500.0,0.00012585,2]
[355343500,1741069847867,-500.0,0.00012585,2]
[355343503,1741069847883,-218.84098029,0.00012585,2]
[355343506,1741069847903,-500.0,0.00012585,2]
[355343509,1741069847918,-977.86,0.00012585,2]
[355343512,1741069847935,-500.0,0.00012585,2]
[355343514,1741069847950,-500.0,0.00012585,2]
[355343517,1741069847965,-500.0,0.00012585,2]
[355343519,1741069847979,-500.0,0.00012585,2]
[355343522,1741069847995,-500.0,0.00012585,2]
[355343524,1741069848009,-500.0,0.00012585,2]
[355343527,1741069848024,-500.0,0.00012585,2]
[355343529,1741069848042,-500.0,0.00012585,2]
[355343532,1741069848058,-500.0,0.00012585,2]
[355343535,1741069848074,-500.0,0.00012585,2]
[355343538,1741069848091,-500.0,0.00012585,2]
[355343540,1741069848110,-500.0,0.00012585,2]
[355343543,1741069848126,-780.2,0.00012585,2]
[355343545,1741069848142,-500.0,0.00012585,2]
[355343548,1741069848157,-500.0,0.00012585,2]
[355343551,1741069848174,-500.0,0.00012585,2]
[355343553,1741069848190,-500.0,0.00012585,2]
[355343556,1741069848205,-500.0,0.00012585,2]
[355343558,1741069848220,-500.0,0.00012585,2]
[355343561,1741069848234,-500.0,0.00012585,2]
[355343564,1741069848249,-505.07127369,0.00012585,2]
[355343566,1741069848264,-500.0,0.00012585,2]
[355343569,1741069848280,-1144.06,0.00012585,2]
[355343571,1741069848295,-2626.73,0.00012585,2]
[355343574,1741069848310,-500.0,0.00012585,2]
[355343576,1741069848325,-500.0,0.00012585,2]
[355343579,1741069848339,-500.0,0.00012585,2]
[355343582,1741069848354,-500.0,0.00012585,2]
[355343584,1741069848368,-3488.58,0.00012585,2]
[355343587,1741069848383,-685.57,0.00012585,2]
[355343589,1741069848398,-500.0,0.00012585,2]
[355343592,1741069848413,-500.0,0.00012585,2]
[355343595,1741069848429,-551.68,0.00012585,2]
[355343597,1741069848444,-500.0,0.00012585,2]
[355343600,1741069848459,-770.36,0.00012585,2]
[355343602,1741069848473,-4341.65,0.00012585,2]
[355343605,1741069848488,-500.0,0.00012585,2]
[355343608,1741069848503,-500.0,0.00012585,2]
[355343610,1741069848518,-500.0,0.00012585,2]
[355343612,1741069848536,-500.0,0.00012585,2]
[355343615,1741069848551,-500.0,0.00012585,2]
[355343618,1741069848566,-500.0,0.00012585,2]
[355343620,1741069848580,-500.0,0.00012585,2]
[355343623,1741069848595,-500.0,0.00012585,2]
[355343625,1741069848610,-500.0,0.00012585,2]
[355343628,1741069848626,-503.0383814,0.00012585,2]
[355343631,1741069848641,-4117.78,0.00012585,2]
[355343633,1741069848657,-500.0,0.00012585,2]
[355343636,1741069848673,-602.61,0.00012585,2]
[355343639,1741069848690,-163.90802416,0.00012585,2]
[355343641,1741069848706,-505.37000707,0.00012585,2]
[355343644,1741069848722,-513.45474978,0.00012585,2]
[355343647,1741069848738,-500.0,0.00012585,2]
[355343649,1741069848753,-500.0,0.00012585,2]
[355343652,1741069848768,-26460.49,0.00012585,2]
[355343655,1741069848783,-968.25,0.00012585,2]
[355343657,1741069848799,-575.01758304,0.00012585,2]
[355343660,1741069848814,-500.0,0.00012585,2]
[355343662,1741069848829,-504.26349904,0.00012585,2]
[355343665,1741069848845,-2384.69,0.00012585,2]
[355343668,1741069848861,-372.44349842,0.00012585,2]
[355343670,1741069848870,-500.0,0.00012585,2]
[355343672,1741069848880,-500.0,0.00012585,2]
[355343674,1741069848889,-500.0,0.00012585,2]
[355343676,1741069848899,-500.0,0.00012585,2]
[355343678,1741069848913,-500.0,0.00012585,2]
[355343680,1741069848923,-500.0,0.00012585,2]
[355343682,1741069848934,-500.0,0.00012585,2]
[355343684,1741069848944,-500.0,0.00012585,2]
[355343721,1741069849285,-2830.8,0.00012585,2]
[355343725,1741069849321,-505.58487714,0.00012585,2]
[355343728,1741069849336,-500.0,0.00012585,2]
[355343729,1741069849348,-500.0,0.00012585,2]
[355343731,1741069849359,-674.46,0.00012585,2]
[355343734,1741069849369,-500.0,0.00012585,2]
[355343736,1741069849379,-500.0,0.00012585,2]
[355343737,1741069849388,-500.0,0.00012585,2]
[355343739,1741069849398,-995.91,0.00012585,2]
[355343741,1741069849407,-500.0,0.00012585,2]
[355343744,1741069849417,-2670.63,0.00012585,2]
[355343746,1741069849430,-500.0,0.00012585,2]
[355343748,1741069849441,-500.0,0.00012585,2]
[355343750,1741069849453,-500.0,0.00012585,2]
[355343752,1741069849463,-508.0194795,0.00012585,2]
[355343754,1741069849473,-503.41930894,0.00012585,2]
[355343756,1741069849483,-500.0,0.00012585,2]
[355343758,1741069849494,-760.62,0.00012585,2]
[355343760,1741069849503,-500.0,0.00012585,2]
[355343762,1741069849513,-500.0,0.00012585,2]
[355343764,1741069849523,-4650.68,0.00012585,2]
[355343766,1741069849532,-502.29058485,0.00012585,2]
[355343768,1741069849542,-276.83645102,0.00012585,2]
[355343770,1741069849552,-500.0,0.00012585,2]
[355343772,1741069849561,-500.0,0.00012585,2]
[355343774,1741069849571,-500.0,0.00012585,2]
[355343776,1741069849580,-500.0,0.00012585,2]
[355343778,1741069849589,-30595.91,0.00012585,2]
[355343779,1741069849599,-500.0,0.00012585,2]
[355343781,1741069849608,-500.0,0.00012585,2]
[355343783,1741069849617,-472.07128108,0.00012585,2]
[355343785,1741069849626,-559.84,0.00012585,2]
[355343787,1741069849635,-501.77108668,0.00012585,2]
[355343789,1741069849645,-500.0,0.00012585,2]
[355343791,1741069849654,-500.0,0.00012585,2]
[355343793,1741069849664,-998.61,0.00012585,2]
[355343795,1741069849673,-500.0,0.00012585,2]
[355343797,1741069849684,-258.96569818,0.00012585,2]
[355343799,1741069849693,-500.0,0.00012585,2]
[355343801,1741069849703,-4178.96,0.00012585,2]
[355343803,1741069849712,-507.62228563,0.00012585,2]
[355343805,1741069849721,-500.0,0.00012585,2]
[355343807,1741069849730,-505.35082433,0.00012585,2]
[355343809,1741069849739,-677.27,0.00012585,2]
[355343811,1741069849748,-549.06092191,0.00012585,2]
[355343813,1741069849758,-500.0,0.00012585,2]
[355343815,1741069849767,-500.0,0.00012585,2]
[355343817,1741069849776,-873.22,0.00012585,2]
[355343819,1741069849786,-500.0,0.00012585,2]
[355343821,1741069849795,-523.23277266,0.00012585,2]
[355343823,1741069849805,-502.48085958,0.00012585,2]
[355343825,1741069849814,-500.0,0.00012585,2]
[355343827,1741069849823,-3513.64,0.00012585,2]
[355343829,1741069849832,-500.0,0.00012585,2]
[355343831,1741069849841,-626.4,0.00012585,2]
[355343833,1741069849851,-610.05,0.00012585,2]
[355343835,1741069849860,-6047.88,0.00012585,2]
[355343837,1741069849869,-500.0,0.00012585,2]
[355343839,1741069849879,-503.56459611,0.00012585,2]
[355343841,1741069849889,-504.73951948,0.00012585,2]
[355343843,1741069849898,-500.0,0.00012585,2]
[355343845,1741069849907,-500.0,0.00012585,2]
[355343847,1741069849916,-500.0,0.00012585,2]
[355343849,1741069849927,-500.0,0.00012585,2]
[355343851,1741069849936,-637.76,0.00012585,2]
[355343853,1741069849946,-2428.77,0.00012585,2]
[355343855,1741069849955,-506.08041169,0.00012585,2]
[355343857,1741069849964,-501.23147899,0.00012585,2]
[355343859,1741069849973,-500.0,0.00012585,2]
[355343861,1741069849983,-504.38745807,0.00012585,2]
[355343863,1741069849992,-500.0,0.00012585,2]
[355343865,1741069850001,-500.0,0.00012585,2]
[355343867,1741069850010,-4369.65,0.00012585,2]